bitfinex-derivatives/quotes_SOLF0:USTF0_20250428
["timestamp","ask_amount","ask_price","bid_price","bid_amount"]
[1745858164098,6.8163,146.66,146.63,6.8171]
[1745858164399,6.8163,146.66,146.61,14.75118738]
[1745858164895,6.8167,146.65,146.61,14.75118738]
[1745858165396,6.8163,146.66,146.61,14.75118738]
[1745858165902,6.8163,146.66,146.63,6.8172]
[1745858166702,8.8158,146.67,146.64,6.8169]
[1745858166894,8.8158,146.67,146.61,14.75118738]
[1745858167100,43.53118738,146.7,146.61,14.75118738]
[1745858167399,45.59248738,146.7,146.61,14.75118738]
[1745858167607,6.8158,146.67,146.64,6.8167]
[1745858167801,45.59248738,146.7,146.64,6.8167]
[1745858168202,45.59248738,146.7,146.65,6.8165]
[1745858168502,45.59248738,146.7,146.61,14.75118738]
[1745858168705,45.59248738,146.7,146.63,14.75118738]
[1745858168901,45.59248738,146.7,146.65,6.8165]
[1745858168902,6.8153,146.68,146.65,6.8165]
[1745858169104,6.8153,146.68,146.63,14.75118738]
[1745858169600,6.8149,146.69,146.66,6.8158]
[1745858170400,6.8149,146.69,146.63,43.51118738]
[1745858170802,6.8149,146.69,146.66,6.8158]
[1745858171500,37.6557,146.7,146.65,14.75118738]
[1745858171701,6.8144,146.7,146.65,14.75118738]
[1745858171897,6.8144,146.7,146.67,6.8152]
[1745858172099,6.8144,146.7,146.65,14.75118738]
[1745858172495,86.57151617,146.79,146.67,14.75118738]
[1745858172703,2.37819,146.75,146.67,28.74]
[1745858172893,14.75118738,146.73,146.68,6.8148]
[1745858173603,14.75118738,146.71,146.67,28.74]
[1745858174105,6.8145,146.7,146.67,28.74]
[1745858174308,14.75118738,146.71,146.67,28.74]
[1745858174501,14.75118738,146.7,146.67,28.74]
[1745858174701,6.8149,146.69,146.67,28.74]
[1745858174903,14.75118738,146.7,146.65,6.8163]
[1745858175207,6.8149,146.69,146.65,6.8163]
[1745858175803,6.8149,146.69,146.66,6.816]
[1745858176004,6.8149,146.69,146.64,28.74]
[1745858176204,6.8149,146.69,146.65,6.8163]
[1745858178407,16.81558738,146.72,146.63,14.75118738]
[1745858178603,43.49118738,146.73,146.65,14.75118738]
[1745858178810,14.75118738,146.74,146.65,14.75118738]
[1745858179011,14.75118738,146.72,146.68,6.8149]
[1745858179312,14.75118738,146.7,146.6,2.0074]
[1745858179611,21.56698738,146.67,146.61,28.74]
[1745858179806,16.69808738,146.69,146.61,43.49118738]
[1745858180006,23.51308738,146.69,146.66,6.816]
[1745858180207,1.9238,146.71,146.65,43.49118738]
[1745858180710,14.75118738,146.73,146.67,6.8154]
[1745858181212,14.75118738,146.73,146.68,6.8151]
[1745858181411,14.75118738,146.73,146.65,43.49118738]
[1745858181811,6.8135,146.72,146.69,6.8144]
[1745858182112,18.66288738,146.74,146.65,43.49118738]
[1745858182410,6.814,146.71,146.68,6.8148]
[1745858183611,6.8143,146.7,146.68,6.8148]
[1745858184013,23.5829836,146.72,146.65,28.74]
[1745858184213,6.8161,146.66,146.63,28.74]
[1745858184414,23.5829836,146.72,146.63,28.74]
[1745858184616,1.9986,146.71,146.63,28.74]
[1745858185110,30.7386,146.71,146.63,35.557]
[1745858185313,30.7386,146.71,146.63,28.74]
[1745858186010,6.8144,146.7,146.63,28.74]
[1745858186211,6.8144,146.7,146.67,6.8153]
[1745858186715,6.8147,146.69,146.63,28.74]
[1745858187015,6.8147,146.69,146.66,6.8158]
[1745858187215,6.8144,146.7,146.63,28.74]
[1745858187410,32.6517,146.74,146.63,28.74]
[1745858188117,32.6517,146.74,146.67,6.8154]
[1745858188314,6.8144,146.7,146.67,6.8154]
[1745858188815,6.8139,146.71,146.68,6.8151]
[1745858190018,6.8135,146.72,146.69,6.8146]
[1745858190220,56.2346836,146.74,146.63,28.74]
[1745858190719,6.814,146.71,146.69,6.8146]
[1745858191018,6.814,146.71,146.63,28.74]
[1745858191221,6.814,146.71,146.69,6.8147]
[1745858191519,6.814,146.71,146.64,23.5829836]
[1745858192119,6.814,146.71,146.68,6.8149]
[1745858192616,56.2346836,146.74,146.67,6.8154]
[1745858193318,6.8144,146.7,146.67,6.8154]
[1745858193822,6.8144,146.7,146.68,6.8151]
[1745858194123,6.8139,146.71,146.68,6.8151]
[1745858194323,56.2346836,146.74,146.67,6.8155]
[1745858194623,6.8141,146.71,146.67,6.8155]
[1745858195016,56.2346836,146.74,146.67,6.8155]
[1745858195222,56.2346836,146.74,146.68,6.8151]
[1745858195523,56.2346836,146.74,146.63,28.74]
[1745858195821,56.2346836,146.74,146.67,6.8154]
[1745858196321,56.2346836,146.74,146.66,6.8158]
[1745858196520,56.2346836,146.74,146.63,28.74]
[1745858196721,6.8149,146.69,146.63,28.74]
[1745858197223,56.2346836,146.74,146.65,6.8163]
[1745858197824,6.8152,146.68,146.65,6.8163]
[1745858198126,6.8152,146.68,146.63,28.74]
[1745858198127,23.5829836,146.71,146.66,6.816]
[1745858198323,6.8149,146.69,146.66,6.816]
[1745858198523,6.8149,146.69,146.63,28.74]
[1745858198719,6.8149,146.69,146.65,6.8161]
[1745858199125,6.8153,146.68,146.65,6.8161]
[1745858199425,23.5829836,146.71,146.65,6.8161]
[1745858199627,6.8149,146.69,146.66,6.816]
[1745858199827,23.5829836,146.72,146.63,28.74]
[1745858200127,6.815,146.69,146.65,6.8162]
[1745858201228,23.5829836,146.69,146.63,28.74]
[1745858201729,6.8159,146.67,146.64,6.8168]
[1745858201932,23.5829836,146.69,146.63,28.74]
[1745858202531,2.0013,146.71,146.63,28.74]
[1745858204235,6.8145,146.7,146.67,6.8154]
[1745858204430,1.18661984,146.78,146.67,28.72]
[1745858204630,2.0438,146.75,146.67,28.72]
[1745858205135,6.813,146.73,146.69,6.8144]
[1745858205332,6.813,146.73,146.67,28.72]
[1745858205533,6.813,146.73,146.7,6.8138]
[1745858205832,16.78067983,146.75,146.67,28.72]
[1745858206030,14.73687983,146.73,146.68,6.8148]
[1745858206231,14.73687983,146.73,146.67,28.72]
[1745858206534,21.54997983,146.73,146.69,6.8143]
[1745858207531,6.8131,146.73,146.7,6.8141]
[1745858208537,16.78067983,146.75,146.67,28.72]
[1745858209032,6.8132,146.73,146.67,28.72]
[1745858209638,6.8132,146.73,146.7,6.8139]
[1745858209837,14.73687983,146.73,146.67,28.72]
[1745858210340,14.73687983,146.73,146.68,6.8149]
[1745858210937,14.73687983,146.73,146.67,35.5353]
[1745858211138,14.73687983,146.73,146.67,28.72]
[1745858211540,6.814,146.71,146.68,6.8148]
[1745858213445,6.8135,146.72,146.68,6.8148]
[1745858213644,6.8135,146.72,146.69,6.8146]
[1745858213944,6.8131,146.73,146.67,28.72]
[1745858214444,14.73687983,146.74,146.67,28.72]
[1745858214645,21.54947983,146.74,146.67,28.72]
[1745858214945,21.54947983,146.74,146.71,6.8136]
[1745858215138,21.54947983,146.74,146.67,28.72]
[1745858215443,6.8129,146.73,146.7,6.814]
[1745858215645,14.73687983,146.72,146.67,28.72]
[1745858216145,14.73687983,146.72,146.69,6.8143]
[1745858217047,21.55037983,146.72,146.69,6.8143]
[1745858217346,14.73687983,146.72,146.7,6.8141]
[1745858217548,21.55017983,146.72,146.67,28.72]
[1745858217947,21.55017983,146.72,146.69,6.8144]
[1745858218847,6.8138,146.71,146.68,6.8149]
[1745858219049,14.73687983,146.72,146.68,6.8149]
[1745858219649,14.73687983,146.74,146.66,43.43687983]
[1745858220044,6.8131,146.73,146.7,6.8138]
[1745858220349,14.73687983,146.74,146.66,43.43687983]
[1745858221144,21.54957983,146.74,146.7,6.8139]
[1745858221352,14.73687983,146.74,146.7,6.8139]
[1745858221545,14.73687983,146.74,146.66,43.43687983]
[1745858221745,6.8128,146.73,146.7,6.814]
[1745858221946,14.73687983,146.74,146.66,43.43687983]
[1745858222953,14.73687983,146.74,146.7,6.814]
[1745858223450,6.813,146.73,146.7,6.814]
[1745858223653,14.73687983,146.72,146.66,28.7]
[1745858223950,6.8155,146.68,146.6,16.74427983]
[1745858224150,14.73687983,146.68,146.63,6.8174]
[1745858224647,6.8158,146.67,146.64,6.8169]
[1745858225150,14.73687983,146.68,146.61,28.7]
[1745858225650,6.8161,146.66,146.63,6.8172]
[1745858225845,14.73687983,146.68,146.61,28.7]
[1745858226051,6.816,146.67,146.63,6.8172]
[1745858226251,14.73687983,146.68,146.63,6.8172]
[1745858226453,14.73687983,146.66,146.61,28.7]
[1745858226751,6.8166,146.65,146.62,6.8177]
[1745858226947,14.73687983,146.66,146.61,28.7]
[1745858227144,14.73687983,146.64,146.61,28.7]
[1745858227349,14.73687983,146.64,146.6,6.8186]
[1745858227955,6.8177,146.63,146.6,6.8186]
[1745858228454,6.8177,146.63,146.58,28.7]
[1745858228754,21.55407983,146.64,146.6,6.8188]
[1745858229751,14.73687983,146.64,146.6,6.8188]
[1745858230356,14.73687983,146.64,146.61,6.8183]
[1745858231658,28.7,146.69,146.61,6.8183]
[1745858231659,14.73687983,146.62,146.61,6.8183]
[1745858232999,14.73687983,146.62,146.53,28.68]
[1745858233285,14.73687983,146.58,146.53,28.68]
[1745858234175,14.73687983,146.6,146.53,28.68]
[1745858234367,43.41687983,146.62,146.53,43.41687983]
[1745858234664,14.73687983,146.62,146.53,43.41687983]
[1745858234865,21.55487983,146.62,146.59,6.819]
[1745858235169,14.73687983,146.6,146.59,6.819]
[1745858236149,14.73687983,146.6,146.53,28.68]
[1745858237459,21.55497983,146.62,146.53,43.41687983]
[1745858238053,21.55497983,146.62,146.59,6.8191]
[1745858238556,14.73687983,146.6,146.53,28.68]
[1745858238761,14.73687983,146.58,146.53,28.68]
[1745858239253,14.73687983,146.58,146.57,6.8202]
[1745858240459,21.55607983,146.6,146.58,6.8197]
[1745858241458,14.73687983,146.6,146.58,6.8197]
[1745858242659,14.73687983,146.6,146.59,6.8193]
[1745858243559,14.73687983,146.6,146.58,6.8196]
[1745858243958,14.73687983,146.6,146.53,28.68]
[1745858245749,14.73687983,146.6,146.57,6.8198]
[1745858246157,14.73687983,146.6,146.58,6.8197]
[1745858246760,14.73687983,146.6,146.57,6.82]
[1745858247361,14.73687983,146.6,146.56,6.8205]
[1745858247562,14.73687983,146.6,146.53,28.68]
[1745858247858,21.55597983,146.6,146.53,28.68]
[1745858248163,21.55597983,146.6,146.57,6.82]
[1745858248557,21.55597983,146.6,146.53,28.68]
[1745858249062,14.73687983,146.58,146.53,28.68]
[1745858249262,14.73687983,146.58,146.54,6.8212]
[1745858249459,21.55677983,146.58,146.54,6.8212]
[1745858249758,21.55677983,146.58,146.53,28.68]
[1745858250064,21.55677983,146.58,146.54,6.8213]
[1745858250262,21.55677983,146.58,146.53,28.68]
[1745858251963,14.73687983,146.58,146.54,6.8214]
[1745858252263,14.73687983,146.56,146.53,28.68]
[1745858252562,14.73687983,146.56,146.53,35.5018]
[1745858252760,14.73687983,146.56,146.53,28.68]
[1745858252960,21.55677983,146.58,146.54,6.8213]
[1745858253470,6.8195,146.59,146.55,6.821]
[1745858253762,14.73687983,146.58,146.53,28.68]
[1745858254064,14.73687983,146.58,146.55,6.8211]
[1745858254261,14.73687983,146.58,146.53,28.68]
[1745858254666,21.55697983,146.58,146.54,6.8214]
[1745858256468,6.8204,146.57,146.53,6.8219]
[1745858256665,14.73687983,146.56,146.53,6.8219]
[1745858256865,14.73687983,146.56,146.52,28.7]
[1745858257262,21.55687983,146.58,146.52,28.7]
[1745858257464,21.55687983,146.58,146.54,6.8214]
[1745858257969,6.8203,146.57,146.54,6.8214]
[1745858258672,21.55687983,146.58,146.54,6.8214]
[1745858259167,6.8203,146.57,146.54,6.8214]
[1745858259366,14.73687983,146.58,146.54,6.8214]
[1745858259568,14.73687983,146.58,146.55,6.8211]
[1745858259767,21.55687983,146.58,146.55,6.8211]
[1745858260166,14.73687983,146.6,146.56,6.8206]
[1745858260366,14.73687983,146.62,146.55,14.73687983]
[1745858260769,14.73687983,146.62,146.58,6.8195]
[1745858260964,14.73687983,146.62,146.53,14.73687983]
[1745858261169,14.73687983,146.6,146.55,6.8209]
[1745858261566,14.73687983,146.58,146.52,28.7]
[1745858261770,14.73687983,146.58,146.54,6.8215]
[1745858262071,21.55697983,146.58,146.54,6.8215]
[1745858262672,28.7,146.63,146.52,28.7]
[1745858262870,14.73687983,146.61,146.53,14.73687983]
[1745858263176,14.73687983,146.61,146.55,6.8208]
[1745858263573,6.8197,146.59,146.55,6.8208]
[1745858263768,6.8197,146.59,146.53,14.73687983]
[1745858264675,6.8198,146.58,146.53,14.73687983]
[1745858264873,6.8198,146.58,146.55,6.8209]
[1745858265977,6.8198,146.58,146.54,6.8214]
[1745858266372,6.8204,146.57,146.54,6.8214]
[1745858266571,14.73687983,146.59,146.52,28.7]
[1745858266874,6.8205,146.57,146.52,28.7]
[1745858267074,6.8205,146.57,146.53,6.8219]
[1745858267277,14.73687983,146.59,146.52,28.7]
[1745858267678,2.015,146.58,146.52,35.5223]
[1745858268077,6.821,146.56,146.53,6.822]
[1745858269676,2.015,146.58,146.52,28.7]
[1745858270173,8.8352,146.58,146.54,6.8213]
[1745858270684,14.73687983,146.6,146.52,28.7]
[1745858270878,6.82,146.58,146.54,6.8213]
[1745858271076,14.73687983,146.6,146.54,6.8213]
[1745858271580,6.82,146.58,146.54,6.8213]
[1745858271774,14.73687983,146.6,146.54,6.8213]
[1745858272278,6.8202,146.57,146.54,6.8213]
[1745858273080,6.8199,146.58,146.55,6.8208]
[1745858273477,6.8199,146.58,146.52,28.7]
[1745858273676,14.73687983,146.59,146.52,28.7]
[1745858274378,16.73967983,146.61,146.52,28.7]
[1745858274778,14.73687983,146.59,146.52,28.7]
[1745858274982,6.8203,146.57,146.52,28.7]
[1745858275680,6.8203,146.57,146.53,6.8219]
[1745858275877,6.8208,146.56,146.53,6.8219]
[1745858276086,6.8208,146.56,146.52,28.7]
[1745858276381,14.73687983,146.57,146.52,35.5222]
[1745858276582,6.8209,146.56,146.52,35.5222]
[1745858277485,6.8209,146.56,146.53,6.822]
[1745858277983,6.8209,146.56,146.52,28.7]
[1745858278179,6.8209,146.56,146.52,35.5222]
[1745858279285,6.8212,146.55,146.52,35.5222]
[1745858279584,14.73687983,146.57,146.52,28.7]
[1745858280384,14.73687983,146.57,146.49,43.39687983]
[1745858280582,14.73687983,146.55,146.49,28.66]
[1745858280783,14.73687983,146.53,146.49,28.66]
[1745858280984,6.8228,146.52,146.49,35.484]
[1745858281181,6.8228,146.52,146.49,28.66]
[1745858281885,21.55917983,146.53,146.49,28.66]
[1745858282085,14.73687983,146.53,146.49,28.66]
[1745858282285,21.55917983,146.53,146.5,6.8235]
[1745858282685,14.73687983,146.53,146.49,28.66]
[1745858282885,14.73687983,146.53,146.5,6.8232]
[1745858283689,21.55927983,146.53,146.49,35.4837]
[1745858284085,14.73687983,146.53,146.49,35.4837]
[1745858284290,14.73687983,146.53,146.49,28.66]
[1745858284889,14.73687983,146.53,146.49,35.4839]
[1745858285187,14.73687983,146.55,146.49,28.66]
[1745858286088,6.8219,146.54,146.5,6.8232]
[1745858286292,6.8219,146.54,146.49,28.66]
[1745858286492,14.73687983,146.55,146.51,6.8226]
[1745858286791,2.1223,146.56,146.51,6.8226]
[1745858286987,2.1223,146.56,146.49,28.66]
[1745858287193,2.0338,146.57,146.49,43.39687983]
[1745858287593,6.8208,146.56,146.52,6.8223]
[1745858287791,6.8208,146.56,146.49,43.39687983]
[1745858287988,16.77067983,146.57,146.49,43.39687983]
[1745858288193,6.8214,146.55,146.51,6.8228]
[1745858288394,14.73687983,146.55,146.49,28.66]
[1745858288795,6.8219,146.54,146.5,6.8233]
[1745858289594,6.8224,146.53,146.49,35.4837]
[1745858290193,6.8226,146.52,146.49,35.4837]
[1745858290395,14.73687983,146.55,146.49,35.4837]
[1745858290590,14.73687983,146.53,146.49,28.66]
[1745858291296,6.8228,146.52,146.49,28.66]
[1745858291493,14.73687983,146.53,146.49,28.66]
[1745858291896,6.8231,146.51,146.47,6.8245]
[1745858292097,14.73687983,146.53,146.47,6.8245]
[1745858292999,14.73687983,146.51,146.46,28.68]
[1745858293502,6.8238,146.5,146.46,35.505]
[1745858293901,6.8238,146.5,146.46,28.68]
[1745858294600,6.8238,146.5,146.47,6.8249]
[1745858296093,14.73687983,146.51,146.46,28.68]
[1745858296299,16.78567983,146.53,146.46,28.68]
[1745858296602,6.8228,146.52,146.48,6.8244]
[1745858296798,16.78567983,146.53,146.48,6.8244]
[1745858297103,6.823,146.52,146.48,6.8244]
[1745858297698,16.78567983,146.53,146.48,6.8244]
[1745858298202,16.78567983,146.53,146.47,6.8247]
[1745858298403,16.78567983,146.53,146.46,28.68]
[1745858299502,16.78567983,146.53,146.46,43.41687983]
[1745858299701,23.60787983,146.53,146.5,6.8235]
[1745858299903,14.73687983,146.56,146.48,14.73687983]
[1745858300096,6.8214,146.55,146.51,6.8228]
[1745858300297,14.73687983,146.56,146.51,6.8228]
[1745858300603,6.8214,146.55,146.51,6.8228]
[1745858300906,14.73687983,146.56,146.52,6.8225]
[1745858301602,14.73687983,146.56,146.5,28.64]
[1745858302399,14.73687983,146.54,146.5,28.64]
[1745858302706,6.8225,146.53,146.5,28.64]
[1745858303402,6.8225,146.53,146.5,35.4635]
[1745858303601,6.8225,146.53,146.5,28.64]
[1745858305304,6.8226,146.52,146.5,28.64]
[1745858305504,14.73687983,146.54,146.5,28.64]
[1745858305705,14.73687983,146.56,146.5,28.64]
[1745858305905,6.8221,146.53,146.5,28.64]
[1745858306804,6.8221,146.53,146.5,35.4633]
[1745858307812,6.8227,146.52,146.5,28.64]
[1745858308405,6.823,146.51,146.5,28.64]
[1745858308598,6.823,146.51,146.48,6.8242]
[1745858309407,6.823,146.51,146.47,35.4647]
[1745858309608,14.73687983,146.52,146.47,35.4647]
[1745858310107,6.8233,146.51,146.48,6.8243]
[1745858310409,14.73687983,146.52,146.48,6.8243]
[1745858311007,6.8231,146.51,146.48,6.8243]
[1745858311207,14.73687983,146.52,146.49,6.8238]
[1745858312309,21.55967983,146.52,146.49,6.8238]
[1745858312506,14.73687983,146.52,146.48,6.8242]
[1745858313510,14.73687983,146.52,146.47,28.64]
[1745858314111,6.8233,146.51,146.47,35.4645]
[1745858314409,6.8233,146.51,146.47,28.64]
[1745858314607,6.8233,146.51,146.47,35.4644]
[1745858314809,6.8233,146.51,146.47,28.64]
[1745858315212,6.8233,146.51,146.47,35.4646]
[1745858316418,14.73687983,146.5,146.47,28.64]
[1745858317322,14.73687983,146.52,146.47,28.64]
[1745858317613,14.73687983,146.54,146.47,28.64]
[1745858317813,14.73687983,146.55,146.47,43.37687983]
[1745858318015,6.8225,146.53,146.49,6.8237]
[1745858318315,14.73687983,146.55,146.47,43.37687983]
[1745858318515,6.8228,146.52,146.47,28.64]
[1745858319016,6.8228,146.52,146.49,6.8237]
[1745858319213,6.8228,146.52,146.47,28.64]
[1745858320017,14.73687983,146.55,146.47,43.37687983]
[1745858320217,47.38977983,146.57,146.47,43.37687983]
[1745858320418,18.74977983,146.57,146.47,43.37687983]
[1745858320715,6.822,146.54,146.51,6.8229]
[1745858321217,6.8213,146.55,146.52,6.8225]
[1745858321716,6.8217,146.54,146.51,6.8228]
[1745858324320,6.8217,146.54,146.51,35.4628]
[1745858325618,14.73687983,146.57,146.51,28.64]
[1745858325916,16.72427983,146.59,146.51,43.37687983]
[1745858326614,1.9874,146.59,146.53,14.73687983]
[1745858327820,16.72427983,146.59,146.51,43.37687983]
[1745858328420,6.8205,146.57,146.53,6.8219]
[1745858329222,16.72427983,146.59,146.52,6.8223]
[1745858329823,6.821,146.56,146.53,6.8221]
[1745858330523,6.8212,146.55,146.52,6.8224]
[1745858330717,16.72427983,146.59,146.52,6.8224]
[1745858330918,16.72427983,146.59,146.51,28.64]
[1745858331117,14.73687983,146.57,146.51,28.64]
[1745858331422,14.73687983,146.57,146.51,35.4628]
[1745858331622,14.73687983,146.55,146.51,28.64]
[1745858331816,6.8229,146.52,146.48,3.8449]
[1745858332023,14.73687983,146.55,146.5,28.6]
[1745858332524,6.8219,146.54,146.5,35.4235]
[1745858332819,14.73687983,146.55,146.5,35.4235]
[1745858333122,6.8223,146.53,146.5,35.4235]
[1745858333425,14.73687983,146.55,146.5,35.4235]
[1745858333719,14.73687983,146.55,146.51,6.823]
[1745858334021,6.8219,146.54,146.51,6.823]
[1745858334721,6.8219,146.54,146.5,35.4233]
[1745858334918,6.8222,146.53,146.5,35.4233]
[1745858335114,14.73687983,146.55,146.5,35.4233]
[1745858335417,6.822,146.54,146.5,35.4233]
[1745858335622,14.73687983,146.55,146.5,35.4233]
[1745858335823,14.73687983,146.55,146.5,28.6]
[1745858336017,6.8223,146.53,146.5,28.6]
[1745858337130,6.8218,146.54,146.5,28.6]
[1745858337321,14.73687983,146.55,146.51,6.8228]
[1745858337725,6.8219,146.54,146.5,35.4233]
[1745858338027,6.8219,146.54,146.5,28.6]
[1745858338826,6.8221,146.53,146.5,28.6]
[1745858339827,6.8221,146.53,146.5,35.4234]
[1745858340026,21.55827983,146.55,146.5,28.6]
[1745858340426,21.55827983,146.55,146.52,6.8226]
[1745858340827,14.73687983,146.55,146.5,28.6]
[1745858341027,18.78497983,146.57,146.52,6.8223]
[1745858341525,6.8212,146.55,146.52,6.8223]
[1745858342127,6.8212,146.55,146.51,6.8229]
[1745858342326,18.78497983,146.57,146.5,28.6]
[1745858342624,18.78497983,146.57,146.52,6.8225]
[1745858342831,18.78497983,146.57,146.5,28.6]
[1745858343326,6.8214,146.55,146.5,28.6]
[1745858343831,6.8214,146.55,146.51,6.8228]
[1745858344631,6.8219,146.54,146.51,6.8228]
[1745858344832,18.78497983,146.57,146.51,6.8228]
[1745858345131,6.8214,146.55,146.51,6.8228]
[1745858345432,18.78497983,146.57,146.51,6.8228]
[1745858345634,14.73687983,146.55,146.51,6.8228]
[1745858345828,6.8219,146.54,146.51,6.8228]
[1745858346023,14.73687983,146.55,146.5,28.6]
[1745858346328,6.8223,146.53,146.5,28.6]
[1745858346527,6.8223,146.53,146.5,35.4233]
[1745858346830,6.8223,146.53,146.5,28.6]
[1745858347132,6.8223,146.53,146.5,35.4233]
[1745858348727,6.8223,146.53,146.5,28.6]
[1745858349231,6.8228,146.52,146.5,28.6]
[1745858349531,14.73687983,146.53,146.5,28.6]
[1745858349831,6.823,146.51,146.5,28.6]
[1745858350029,14.73687983,146.51,146.47,35.4247]
[1745858350430,6.8237,146.5,146.46,28.6]
[1745858350632,14.73687983,146.51,146.46,35.4253]
[1745858351033,6.8239,146.5,146.46,35.4253]
[1745858351335,14.73687983,146.49,146.46,28.6]
[1745858351730,21.56107983,146.49,146.46,28.6]
[1745858352132,14.73687983,146.49,146.46,35.4252]
[1745858352833,21.56007983,146.51,146.46,28.6]
[1745858353335,14.73687983,146.51,146.46,28.6]
[1745858353537,6.8226,146.52,146.46,28.6]
[1745858353735,14.73687983,146.53,146.46,28.6]
[1745858354035,21.55917983,146.53,146.46,28.6]
[1745858354232,14.73687983,146.53,146.46,28.6]
[1745858354736,6.8228,146.52,146.49,6.8236]
[1745858355338,28.6,146.56,146.46,28.6]
[1745858355938,6.823,146.52,146.48,6.8243]
[1745858356238,6.823,146.52,146.46,28.6]
[1745858356239,28.6,146.56,146.46,28.6]
[1745858356438,6.822,146.54,146.5,6.8231]
[1745858356638,28.6,146.56,146.46,28.6]
[1745858356834,4.0481,146.57,146.46,28.6]
[1745858357133,2.0378,146.57,146.46,388.6]
[1745858357337,30.5474,146.59,146.47,0.4279]
[1745858357838,6.8205,146.57,146.54,6.8213]
[1745858358744,30.5474,146.59,146.52,28.56]
[1745858359343,6.8203,146.57,146.53,6.8219]
[1745858359640,30.5474,146.59,146.53,6.8219]
[1745858360442,30.5474,146.59,146.52,35.3824]
[1745858360935,6.8206,146.57,146.53,6.822]
[1745858362233,6.82,146.58,146.54,6.8213]
[1745858362743,37.3669,146.59,146.55,6.8211]
[1745858362941,30.5474,146.59,146.52,28.56]
[1745858363441,6.82,146.58,146.54,6.8213]
[1745858364342,6.82,146.58,146.52,28.56]
[1745858364639,6.82,146.58,146.55,6.8211]
[1745858365543,37.3669,146.59,146.55,6.8211]
[1745858365740,8.8069,146.59,146.55,6.8211]
[1745858365937,1.9874,146.59,146.56,6.8206]
[1745858366333,8.8068,146.59,146.56,6.8206]
[1745858366737,2.0886,146.61,146.52,28.56]
[1745858367038,6.8186,146.61,146.52,28.56]
[1745858367239,6.8186,146.61,146.58,6.8195]
[1745858367440,6.8186,146.61,146.56,28.56]
[1745858367940,1.9634,146.63,146.56,28.56]
[1745858368448,8.7813,146.63,146.6,6.8185]
[1745858368747,3.9496,146.66,146.56,28.56]
[1745858369248,6.8167,146.65,146.62,6.8177]
[1745858369448,1.9673,146.66,146.6,28.56]
[1745858369949,8.7836,146.66,146.62,6.8176]
[1745858370853,6.8165,146.65,146.62,6.8176]
[1745858371041,1.9673,146.66,146.6,35.3784]
[1745858371247,1.9673,146.66,146.6,28.56]
[1745858371442,2.28856,146.67,146.6,28.56]
[1745858371752,2.28856,146.67,146.64,6.8167]
[1745858371949,9.10436,146.67,146.64,6.8167]
[1745858373054,6.8161,146.66,146.63,6.8172]
[1745858374054,2.28856,146.67,146.6,28.56]
[1745858374552,30.82856,146.67,146.57,28.54]
[1745858374751,30.82856,146.67,146.59,6.8193]
[1745858374946,30.82856,146.67,146.57,28.54]
[1745858375146,6.8178,146.63,146.59,6.8191]
[1745858375847,30.82856,146.67,146.58,6.8197]
[1745858376248,30.82856,146.67,146.57,28.54]
[1745858376552,6.8184,146.61,146.57,28.54]
[1745858377053,30.82856,146.67,146.57,28.54]
[1745858377454,6.8186,146.61,146.57,35.36]
[1745858378049,6.8189,146.6,146.57,35.36]
[1745858378657,6.8189,146.6,146.57,28.54]
[1745858380359,6.8186,146.61,146.57,35.3602]
[1745858381156,6.8189,146.6,146.57,28.54]
[1745858381758,6.8187,146.61,146.57,35.3599]
[1745858382258,30.82856,146.67,146.57,28.54]
[1745858382855,6.8174,146.64,146.57,28.54]